bitfinex-derivatives/quotes_BTCF0:USTF0_20250811
["timestamp","ask_amount","ask_price","bid_price","bid_amount"]
[1754912628523,0.0107183,120760.0,120750.0,1.07961125]
[1754912628721,0.7953583,120760.0,120750.0,1.17079966]
[1754912628916,0.8781798,120760.0,120750.0,1.02225873]
[1754912629715,0.8781798,120760.0,120750.0,0.93943023]
[1754912630026,1.0521798,120760.0,120750.0,0.84834182]
[1754912630214,1.4129798,120760.0,120750.0,1.04164306]
[1754912630420,1.0521798,120760.0,120750.0,1.04164306]
[1754912630925,0.8781798,120760.0,120750.0,1.04164306]
[1754912631122,1.0521798,120760.0,120750.0,1.04164306]
[1754912631426,1.0521798,120760.0,120750.0,0.84834182]
[1754912631628,1.0654098,120760.0,120750.0,0.84834182]
[1754912633727,1.0654098,120760.0,120750.0,1.08646765]
[1754912635021,1.0651298,120760.0,120750.0,0.49477512]
[1754912635331,1.0650098,120760.0,120750.0,1.08777765]
[1754912635715,1.0649698,120760.0,120750.0,1.08777765]
[1754912636522,1.4257698,120760.0,120750.0,1.03874765]
[1754912636723,1.4257698,120760.0,120750.0,0.49477512]
[1754912637126,1.4257698,120760.0,120750.0,0.44896512]
[1754912637626,1.4257698,120760.0,120750.0,0.21083929]
[1754912637831,0.98887233,120760.0,120750.0,0.12802699]
[1754912638129,1.77291233,120760.0,120750.0,0.12802699]
[1754912638325,0.98887233,120760.0,120750.0,0.12802699]
[1754912638831,1.77287233,120760.0,120750.0,0.12802699]
[1754912639030,1.4255698,120760.0,120750.0,0.12802699]
[1754912640228,1.77287233,120760.0,120750.0,0.12802699]
[1754912640934,0.0828285,120750.0,120740.0,0.12712193]
[1754912641134,0.0828353,120740.0,120730.0,9.94e-05]
[1754912641335,0.5906053,120740.0,120730.0,9.94e-05]
[1754912641627,2.5194853,120740.0,120730.0,0.12389638]
[1754912641834,2.08290783,120740.0,120730.0,0.31752185]
[1754912642033,2.86674783,120740.0,120730.0,0.31752185]
[1754912642226,2.86684783,120740.0,120730.0,0.31762185]
[1754912643029,2.86684783,120740.0,120730.0,0.12699638]
[1754912643230,2.86684783,120740.0,120730.0,0.32448088]
[1754912643630,2.86684783,120740.0,120730.0,0.37351088]
[1754912643631,2.5194653,120740.0,120730.0,0.37351088]
[1754912643936,2.58422593,120740.0,120730.0,0.37351088]
[1754912644337,2.59749593,120740.0,120730.0,0.37351088]
[1754912644539,2.59749593,120740.0,120730.0,0.18002638]
[1754912645634,2.59749593,120740.0,120730.0,0.24661638]
[1754912645834,2.59749593,120740.0,120730.0,0.32453638]
[1754912647238,2.59749593,120740.0,120730.0,0.51787591]
[1754912648233,2.59749593,120740.0,120730.0,0.32453638]
[1754912648639,2.73509593,120740.0,120730.0,0.32453638]
[1754912651938,2.73509593,120740.0,120730.0,0.25794638]
[1754912653443,2.73509593,120740.0,120730.0,0.32453638]
[1754912654644,2.73509593,120740.0,120730.0,0.18002638]
[1754912655831,1.79284593,120740.0,120730.0,0.66049476]
[1754912656032,2.57588593,120740.0,120730.0,0.71924476]
[1754912656441,2.59677593,120740.0,120730.0,0.71924476]
[1754912656945,2.59677593,120740.0,120730.0,0.36397638]
[1754912658039,2.59665593,120740.0,120730.0,0.36397638]
[1754912658440,2.59665593,120740.0,120730.0,0.13099638]
[1754912658643,2.89313431,120740.0,120730.0,0.13099638]
[1754912659148,0.96525431,120740.0,120730.0,0.13099638]
[1754912659346,2.11049431,120740.0,120730.0,0.13099638]
[1754912659643,3.05899031,120740.0,120730.0,0.10167638]
[1754912659947,3.05899031,120740.0,120720.0,0.17357961]
[1754912659948,0.0828408,120730.0,120720.0,0.17357961]
[1754912660143,0.83709918,120730.0,120720.0,0.17357961]
[1754912660339,1.61989918,120730.0,120720.0,0.34697838]
[1754912660544,1.61996818,120730.0,120720.0,0.17339877]
[1754912660735,1.61996818,120730.0,120720.0,0.12421877]
[1754912661043,0.83716818,120730.0,120720.0,7e-08]
[1754912661239,1.61996818,120730.0,120720.0,7e-08]
[1754912661439,1.3234498,120730.0,120720.0,0.07160548]
[1754912661639,1.4610498,120730.0,120720.0,8e-08]
[1754912661835,0.8439138,120730.0,120720.0,8e-08]
[1754912662143,0.082854,120710.0,120700.0,0.23812583]
[1754912662336,1.323274,120710.0,120700.0,0.28726583]
[1754912662534,1.61975238,120710.0,120700.0,0.35240544]
[1754912662746,1.61985238,120710.0,120700.0,0.41904544]
[1754912664149,0.83721238,120710.0,120700.0,0.41904544]
[1754912664448,1.61989238,120710.0,120700.0,0.41904544]
[1754912664949,1.61989238,120710.0,120700.0,0.42104544]
[1754912665146,1.61989238,120710.0,120700.0,0.42304544]
[1754912666246,1.61989238,120710.0,120700.0,0.18495961]
[1754912666549,1.61989238,120710.0,120700.0,0.21607961]
[1754912668152,1.61989238,120710.0,120700.0,0.26290961]
[1754912668553,0.540694,120710.0,120700.0,0.26290961]
[1754912668754,1.323054,120710.0,120700.0,0.26290961]
[1754912669155,1.61957238,120710.0,120700.0,0.26290961]
[1754912669356,1.61957238,120710.0,120700.0,0.50109239]
[1754912670354,1.323014,120710.0,120700.0,0.89427077]
[1754912670558,1.322934,120710.0,120700.0,0.89427077]
[1754912670857,1.61945238,120710.0,120700.0,0.59775239]
[1754912671057,1.322934,120710.0,120700.0,0.79130842]
[1754912671258,1.322854,120710.0,120700.0,0.55312564]
[1754912671854,0.540694,120710.0,120700.0,0.55312564]
[1754912672361,0.83721238,120710.0,120700.0,0.55312564]
[1754912672560,1.61933238,120710.0,120700.0,0.55312564]
[1754912673657,1.322814,120710.0,120700.0,0.55312564]
[1754912674058,1.322814,120710.0,120700.0,0.47282564]
[1754912675462,1.61933238,120710.0,120700.0,0.47282564]
[1754912675963,1.61933238,120710.0,120700.0,0.27926961]
[1754912678161,1.63266238,120710.0,120700.0,0.27926961]
[1754912678959,0.85054238,120710.0,120700.0,0.27926961]
[1754912679160,1.63222238,120710.0,120700.0,0.27926961]
[1754912679363,0.85054238,120710.0,120700.0,0.03034371]
[1754912679551,1.63218238,120710.0,120700.0,0.03034371]
[1754912680055,0.85054238,120710.0,120700.0,0.03034371]
[1754912680258,1.63218238,120710.0,120700.0,0.03034371]
[1754912681869,1.63218238,120710.0,120700.0,0.1791221]
[1754912683082,0.85054238,120710.0,120700.0,0.1791221]
[1754912683274,1.63198238,120710.0,120700.0,0.1791221]
[1754912683576,1.76958238,120710.0,120700.0,0.1791221]
[1754912686585,1.76958238,120710.0,120700.0,0.22375562]
[1754912687883,1.473064,120710.0,120700.0,0.03034371]
[1754912688085,1.76958238,120710.0,120700.0,0.03034371]
[1754912688585,1.76958238,120710.0,120700.0,0.22385404]
[1754912688586,0.98814238,120710.0,120700.0,0.22385404]
[1754912688786,1.76930238,120710.0,120700.0,0.22385404]
[1754912688987,1.472784,120710.0,120700.0,0.22385404]
[1754912689286,1.76926238,120710.0,120700.0,0.22385404]
[1754912689886,1.76922238,120710.0,120700.0,0.22385404]
[1754912694187,1.472424,120710.0,120700.0,0.22385404]
[1754912694388,1.76894238,120710.0,120700.0,0.03034371]
[1754912695393,0.554024,120710.0,120700.0,0.54134209]
[1754912695591,1.334704,120710.0,120700.0,0.54134209]
[1754912695891,1.334704,120710.0,120700.0,0.73498703]
[1754912696191,0.193224,120710.0,120700.0,0.88394403]
[1754912696391,0.973864,120710.0,120700.0,0.88394403]
[1754912697093,0.973864,120710.0,120700.0,0.54134209]
[1754912697590,0.973864,120710.0,120700.0,0.62418869]
[1754912698091,0.193224,120710.0,120700.0,0.32767031]
[1754912698393,0.973744,120710.0,120700.0,0.62418869]
[1754912698691,0.914964,120710.0,120700.0,0.62418869]
[1754912699390,0.134444,120710.0,120700.0,0.62418869]
[1754912699693,0.914924,120710.0,120700.0,0.86237147]
[1754912700495,0.973934,120710.0,120700.0,1.0114246]
[1754912701281,0.914924,120710.0,120700.0,1.0114246]
[1754912701486,0.914924,120710.0,120700.0,0.71490622]
[1754912701683,0.876564,120710.0,120700.0,1.13404182]
[1754912702084,0.876524,120710.0,120700.0,1.13404182]
[1754912702296,0.876524,120710.0,120700.0,0.98498869]
[1754912705199,0.876524,120710.0,120700.0,1.22337085]
[1754912705498,0.876324,120710.0,120700.0,1.22337085]
[1754912705798,0.972314,120710.0,120700.0,1.22337085]
[1754912706197,0.972314,120710.0,120700.0,0.92685247]
[1754912706396,0.972314,120710.0,120700.0,1.22337085]
[1754912706591,0.192274,120710.0,120700.0,1.22337085]
[1754912706998,0.972194,120710.0,120700.0,1.22337085]
[1754912707495,0.74178018,120710.0,120700.0,0.98488869]
[1754912708099,0.088274,120710.0,120700.0,0.62408869]
[1754912708299,0.38479238,120710.0,120700.0,0.32757031]
[1754912708506,0.74569238,120710.0,120700.0,0.11319031]
[1754912708697,0.74569238,120710.0,120700.0,0.03034371]
[1754912709297,1.52884238,120710.0,120700.0,0.03034371]
[1754912709804,0.91475074,120710.0,120690.0,0.20801056]
[1754912710105,0.74356358,120700.0,120690.0,0.32392222]
[1754912710302,1.52870358,120700.0,120690.0,0.30220342]
[1754912710501,1.52870358,120700.0,120690.0,0.12418667]
[1754912711102,0.74898358,120700.0,120690.0,0.12518667]
[1754912711294,1.52876358,120700.0,120690.0,0.12628667]
[1754912712806,0.74908358,120700.0,120690.0,0.12528667]
[1754912713006,1.52968358,120700.0,120690.0,0.12528667]
[1754912713409,1.53068358,120700.0,120690.0,0.12428667]
[1754912714711,0.75108358,120700.0,120690.0,0.12428667]
[1754912715009,1.2340852,120700.0,120690.0,0.402984]
[1754912715205,1.2340452,120700.0,120690.0,0.532414]
[1754912715399,1.53056358,120700.0,120690.0,0.532414]
[1754912715605,1.2340452,120700.0,120690.0,0.532414]
[1754912715811,0.75108358,120700.0,120690.0,0.532414]
[1754912716011,1.53052358,120700.0,120690.0,0.532414]
[1754912716212,1.2340052,120700.0,120690.0,0.63528505]
[1754912716401,0.4457552,120700.0,120690.0,0.63528505]
[1754912716604,1.2251552,120700.0,120690.0,0.33876667]
[1754912716812,0.4491452,120700.0,120690.0,0.33876667]
[1754912717111,1.2285452,120700.0,120690.0,0.33876667]
[1754912717308,1.2285452,120700.0,120690.0,0.63528505]
[1754912717309,1.2251552,120700.0,120690.0,0.63528505]
[1754912717713,1.2251552,120700.0,120690.0,0.33876667]
[1754912718009,1.2297952,120700.0,120690.0,0.33876667]
[1754912718405,1.2297952,120700.0,120690.0,0.82893238]
[1754912718406,1.2251552,120700.0,120690.0,0.82893238]
[1754912718613,0.8642752,120700.0,120690.0,0.91178585]
[1754912718912,0.8642752,120700.0,120690.0,1.27258585]
[1754912719810,0.8642752,120700.0,120690.0,1.07893852]
[1754912720014,0.8642752,120700.0,120690.0,0.56794014]
[1754912720216,0.75434358,120700.0,120690.0,0.29499689]
[1754912720408,1.53354358,120700.0,120690.0,0.29499689]
[1754912720608,0.75434358,120700.0,120690.0,0.29499689]
[1754912720910,1.53354358,120700.0,120690.0,0.29499689]
[1754912721314,1.53354358,120700.0,120690.0,0.10142537]
[1754912721508,1.53254358,120700.0,120690.0,0.10142537]
[1754912721709,1.53354358,120700.0,120690.0,0.25033014]
[1754912721910,1.2370252,120700.0,120690.0,0.25033014]
[1754912722108,1.53354358,120700.0,120690.0,0.25033014]
[1754912722415,1.53254358,120700.0,120690.0,0.25133014]
[1754912722616,1.53454358,120700.0,120690.0,0.10242537]
[1754912722811,0.75534358,120700.0,120690.0,0.10242537]
[1754912723008,1.53454358,120700.0,120690.0,0.10242537]
[1754912723507,0.75534358,120700.0,120690.0,0.16679537]
[1754912723915,1.53454358,120700.0,120690.0,0.16679537]
[1754912725417,0.75534358,120700.0,120690.0,0.16679537]
[1754912725816,0.75534358,120700.0,120690.0,0.22732537]
[1754912726017,1.53454358,120700.0,120690.0,0.26510537]
[1754912726416,0.75534358,120700.0,120690.0,0.26510537]
[1754912726717,1.53454358,120700.0,120690.0,0.26510537]
[1754912726913,1.2380252,120700.0,120690.0,0.26510537]
[1754912727118,1.53454358,120700.0,120690.0,0.24366537]
[1754912727415,0.75534358,120700.0,120690.0,0.30803537]
[1754912727616,1.53454358,120700.0,120690.0,0.30803537]
[1754912727812,0.75534358,120700.0,120690.0,0.30803537]
[1754912728015,1.53450358,120700.0,120690.0,0.30803537]
[1754912728416,0.75534358,120700.0,120690.0,0.30803537]
[1754912728716,1.53450358,120700.0,120690.0,0.18313537]
[1754912728909,1.53450358,120700.0,120690.0,0.10242537]
[1754912729308,0.75534358,120700.0,120690.0,0.21091476]
[1754912729507,0.75534358,120700.0,120690.0,0.18284006]
[1754912729713,1.53450358,120700.0,120690.0,0.37641158]
[1754912730107,1.53450358,120700.0,120690.0,0.22755939]
[1754912730713,0.75534358,120700.0,120690.0,0.22755939]
[1754912730915,1.53450358,120700.0,120690.0,0.03398787]
[1754912731617,0.75534358,120700.0,120690.0,0.03398787]
[1754912731814,1.53450358,120700.0,120690.0,0.01119477]
[1754912732015,0.75524358,120700.0,120690.0,7e-08]
[1754912732219,1.53440358,120700.0,120690.0,0.31762116]
[1754912733516,1.53440358,120700.0,120690.0,0.29463526]
[1754912733821,1.53450358,120700.0,120690.0,0.29473526]
[1754912734037,1.53450358,120700.0,120690.0,0.33978526]
[1754912734914,1.2379852,120700.0,120690.0,0.33978526]
[1754912735225,1.53450358,120700.0,120690.0,0.33978526]
[1754912735722,1.53450358,120700.0,120690.0,0.16922773]
[1754912736221,1.53446358,120700.0,120690.0,0.16922773]
[1754912736814,1.53436358,120700.0,120680.0,0.06437]
[1754912737020,0.0828827,120660.0,120650.0,0.23832202]
[1754912737316,0.9018927,120660.0,120650.0,0.47505379]
[1754912737618,0.8951627,120660.0,120650.0,0.68047362]
[1754912737823,0.8951627,120660.0,120650.0,0.74100362]
[1754912738020,0.89532742,120660.0,120650.0,0.97953394]
[1754912738730,0.89532742,120660.0,120650.0,0.68301556]
[1754912738918,0.11620742,120660.0,120650.0,1.02458394]
[1754912739223,0.2486414,120670.0,120650.0,1.83766491]
[1754912739421,0.70225268,120670.0,120660.0,0.16995]
[1754912739718,0.70225268,120670.0,120650.0,0.72279639]
[1754912739719,0.0828828,120660.0,120650.0,0.72279639]
[1754912739911,0.3608828,120660.0,120650.0,0.39114083]
[1754912740115,1.10095826,120660.0,120650.0,0.44992267]
[1754912740322,1.10105826,120660.0,120650.0,0.49507267]
[1754912740515,1.10105826,120660.0,120650.0,0.49107267]
[1754912740716,1.10105826,120660.0,120650.0,0.79159105]
[1754912740920,1.10105826,120660.0,120650.0,1.03007691]
[1754912741121,1.10105826,120660.0,120650.0,1.03307691]
[1754912741826,1.10105826,120660.0,120650.0,1.02907691]
[1754912742116,1.10205826,120660.0,120650.0,1.03407691]
[1754912743124,1.10205826,120660.0,120650.0,0.79559105]
[1754912743919,0.98446826,120660.0,120650.0,0.68241105]
[1754912744120,0.86447826,120660.0,120650.0,0.51246105]
[1754912745023,0.86447826,120660.0,120650.0,0.75094691]
[1754912745420,0.86447826,120660.0,120650.0,0.45442853]
[1754912746827,0.08407826,120660.0,120650.0,0.45442853]
[1754912747124,0.86327826,120660.0,120650.0,0.45442853]
[1754912747324,0.86327826,120660.0,120650.0,0.64798277]
[1754912748226,1.02571664,120660.0,120650.0,0.5341813]
[1754912748419,1.80491664,120660.0,120650.0,0.5341813]
[1754912748726,1.80491664,120660.0,120650.0,0.34062706]
[1754912749328,1.02571664,120660.0,120650.0,0.34062706]
[1754912749628,2.95075664,120660.0,120650.0,0.34062706]
[1754912750919,2.95075664,120660.0,120650.0,0.33962706]
[1754912751129,2.95075664,120660.0,120650.0,0.0991412]
[1754912751821,2.95075664,120660.0,120650.0,0.29261487]
[1754912752525,2.95075664,120660.0,120650.0,0.44141655]
[1754912753025,2.95075664,120660.0,120650.0,0.24794288]
[1754912754017,2.95075664,120660.0,120650.0,0.0991412]
[1754912754223,2.95075664,120660.0,120650.0,0.24784842]
[1754912755315,2.95075664,120660.0,120650.0,0.44132209]
[1754912755721,2.65423826,120660.0,120650.0,0.29261487]
[1754912756023,2.95075664,120660.0,120650.0,0.29261487]
[1754912756425,2.95075664,120660.0,120650.0,0.0991412]
[1754912757126,2.95075664,120660.0,120650.0,0.0451135]
[1754912757523,2.65423826,120660.0,120650.0,0.0451135]
[1754912757728,2.95075664,120660.0,120650.0,0.0451135]
[1754912757930,2.95075664,120660.0,120650.0,0.0922835]
[1754912758432,2.96928798,120660.0,120650.0,0.0922835]
[1754912758630,3.10678798,120660.0,120650.0,0.0451135]
[1754912759929,3.10678798,120660.0,120650.0,0.0922835]
[1754912760232,3.10678798,120660.0,120650.0,0.62527188]
[1754912760233,1.8531496,120660.0,120650.0,0.62527188]
[1754912760424,2.6333496,120660.0,120650.0,0.62527188]
[1754912760828,2.6333496,120660.0,120650.0,0.3287535]
[1754912761625,2.2725496,120660.0,120650.0,0.3287535]
[1754912762022,1.4923496,120660.0,120650.0,0.62527188]
[1754912762228,1.2484496,120660.0,120650.0,1.06895282]
[1754912762531,0.9514296,120660.0,120650.0,1.06895282]
[1754912762833,1.1230596,120660.0,120650.0,0.77243444]
[1754912763130,1.82079798,120660.0,120650.0,0.41163444]
[1754912763338,1.82063798,120660.0,120650.0,0.60486515]
[1754912764435,1.82063798,120660.0,120650.0,0.41163444]
[1754912764830,1.82063798,120660.0,120650.0,0.2055135]
[1754912765125,1.04067798,120660.0,120650.0,0.2702435]
[1754912765323,1.04067798,120660.0,120650.0,0.3287535]
[1754912765737,0.7441596,120660.0,120650.0,0.3287535]
[1754912766037,1.4836196,120660.0,120650.0,0.3287535]
[1754912766429,1.78013798,120660.0,120650.0,0.3287535]
[1754912766624,1.5240396,120660.0,120650.0,0.3287535]
[1754912766927,1.82055798,120660.0,120650.0,0.47749672]
[1754912767332,1.5240396,120660.0,120650.0,0.47749672]
[1754912767835,1.82055798,120660.0,120650.0,0.47749672]
[1754912768638,1.82055798,120660.0,120650.0,0.3287535]
[1754912768936,0.7037396,120660.0,120650.0,0.3287535]
[1754912769238,1.4832596,120660.0,120650.0,0.3287535]
[1754912770039,1.4830996,120660.0,120650.0,0.3287535]
[1754912770331,1.5235196,120660.0,120650.0,0.3287535]
[1754912771832,1.82003798,120660.0,120650.0,0.3287535]
[1754912772642,0.7441596,120660.0,120650.0,0.3287535]
[1754912772940,1.5235196,120660.0,120650.0,0.52198421]
[1754912773834,1.2427696,120660.0,120650.0,0.52198421]
[1754912774139,1.3114696,120660.0,120650.0,0.52198421]
[1754912774339,1.3690796,120660.0,120650.0,0.52198421]
[1754912775538,1.4094996,120660.0,120650.0,0.52198421]
[1754912776629,1.4094996,120660.0,120650.0,0.3287535]
[1754912776834,1.4094996,120660.0,120650.0,0.56063704]
[1754912776835,0.5897196,120660.0,120650.0,0.56063704]
[1754912777035,0.7037396,120660.0,120650.0,0.56063704]
[1754912777234,1.4830596,120660.0,120650.0,0.56063704]
[1754912777741,0.7037396,120660.0,120650.0,0.60486515]
[1754912777932,1.4830596,120660.0,120650.0,0.60486515]
[1754912778131,0.7037396,120660.0,120650.0,0.60486515]
[1754912778333,1.4830596,120660.0,120650.0,0.60486515]
[1754912779042,1.4830596,120660.0,120650.0,0.41163444]
[1754912779731,1.5234796,120660.0,120650.0,0.41163444]
[1754912781340,1.5234796,120660.0,120650.0,0.60486515]
[1754912782142,0.7037396,120660.0,120650.0,0.90138353]
[1754912782342,1.04257826,120660.0,120650.0,0.90138353]
[1754912782643,1.09795826,120660.0,120650.0,0.85726914]
[1754912784234,1.09795826,120660.0,120650.0,0.70815282]
[1754912784443,1.13837826,120660.0,120650.0,0.70815282]
[1754912784643,1.13837826,120660.0,120650.0,0.41163444]
[1754912785738,1.13837826,120660.0,120650.0,0.56076382]
[1754912786433,1.13837826,120660.0,120650.0,0.41163444]
[1754912788644,1.13837826,120660.0,120650.0,0.60486515]
[1754912789842,1.13837826,120660.0,120650.0,0.41163444]
[1754912790748,1.06607826,120660.0,120650.0,0.63039282]
[1754912790945,0.28687826,120660.0,120650.0,0.70957282]
[1754912791147,1.06607826,120660.0,120650.0,0.70957282]
[1754912792848,1.06607826,120660.0,120650.0,0.41305444]
[1754912793245,0.28687826,120660.0,120650.0,0.41305444]
[1754912793448,1.06603826,120660.0,120650.0,0.41305444]
[1754912794152,0.28687826,120660.0,120650.0,0.41305444]
[1754912794352,1.06603826,120660.0,120650.0,0.33387444]
[1754912795650,1.06603826,120660.0,120650.0,0.5723603]
[1754912797551,1.06603826,120660.0,120650.0,0.26914444]
[1754912797852,1.06603826,120660.0,120650.0,0.12799444]
[1754912798047,1.06595826,120660.0,120650.0,0.19245444]
[1754912798353,1.06595826,120660.0,120650.0,0.33159444]
[1754912798557,1.36247664,120660.0,120650.0,0.33159444]
[1754912800054,1.72327664,120660.0,120650.0,0.12799444]
[1754912800256,1.72327664,120660.0,120650.0,0.28356729]
[1754912800446,1.72323664,120660.0,120650.0,0.28356729]
[1754912802352,0.96277826,120660.0,120650.0,0.04840017]
[1754912802547,0.0828966,120640.0,120630.0,8.441e-05]
[1754912802858,1.51921498,120640.0,120630.0,0.12377441]
[1754912803051,1.51921498,120640.0,120630.0,0.18823441]
[1754912803252,1.51921498,120640.0,120630.0,0.28413441]
[1754912803453,1.51931498,120640.0,120630.0,0.28423441]
[1754912803653,1.51931498,120640.0,120630.0,0.28823441]
[1754912803957,1.52031498,120640.0,120630.0,0.29423441]
[1754912804154,1.52031498,120640.0,120630.0,0.23768441]
[1754912804451,0.74131498,120640.0,120630.0,0.17322441]
[1754912804655,1.52031498,120640.0,120630.0,0.17322441]
[1754912804854,1.52031498,120640.0,120630.0,0.23768441]
[1754912805245,1.52031498,120640.0,120630.0,0.29423441]
[1754912805955,1.52031498,120640.0,120630.0,0.29223441]
[1754912806156,0.74131498,120640.0,120630.0,0.29223441]
[1754912806356,1.52031498,120640.0,120630.0,0.29223441]
[1754912806565,1.52031498,120640.0,120630.0,0.13187441]
[1754912806756,1.52031498,120640.0,120630.0,0.12887441]
[1754912807258,1.52247498,120640.0,120630.0,0.12887441]
[1754912808062,1.2259566,120640.0,120630.0,0.12887441]
[1754912808362,1.52247498,120640.0,120630.0,0.12887441]
[1754912808553,1.52247498,120640.0,120630.0,0.12687441]
[1754912808953,1.65997498,120640.0,120630.0,0.12487441]
[1754912809160,2.80605498,120640.0,120630.0,0.12487441]
[1754912812561,2.5095366,120640.0,120630.0,0.12487441]
[1754912812849,2.80605498,120640.0,120630.0,0.12487441]
[1754912813658,3.10257336,120640.0,120630.0,0.12487441]
[1754912813857,3.46337336,120640.0,120630.0,0.33351839]
[1754912814065,2.8703366,120640.0,120630.0,0.33351839]
[1754912814355,3.16681498,120640.0,120630.0,0.33351839]
[1754912815857,3.46333336,120640.0,120630.0,0.09506871]
[1754912816454,3.46333336,120640.0,120630.0,0.28858638]
[1754912816654,3.46337336,120640.0,120630.0,0.28858638]
[1754912817163,2.68437336,120640.0,120630.0,0.28858638]
[1754912817472,3.46333336,120640.0,120630.0,0.28858638]
[1754912817759,0.2204033,120630.0,120620.0,0.13592754]
[1754912817965,0.88332168,120630.0,120620.0,0.13592754]
[1754912818156,0.88332168,120630.0,120620.0,0.21940629]
[1754912818361,0.88332168,120630.0,120620.0,0.19321939]
[1754912818565,0.88332168,120630.0,120620.0,0.06939644]
[1754912818763,0.88332168,120630.0,120620.0,0.03945224]
[1754912818975,0.88342168,120630.0,120620.0,0.23406991]
[1754912819156,0.88342168,120630.0,120620.0,0.20955961]
[1754912819360,0.88342168,120630.0,120620.0,0.16893861]
[1754912819564,0.88342168,120630.0,120620.0,0.10934202]
[1754912819960,0.88342168,120630.0,120620.0,0.0011]
[1754912820263,0.082917,120610.0,120600.0,0.12318]
[1754912820468,1.16403538,120610.0,120600.0,0.20387]
[1754912820765,0.867517,120610.0,120600.0,0.32879808]
[1754912820966,1.16403538,120610.0,120600.0,0.32879808]
[1754912821571,0.867517,120610.0,120600.0,0.32879808]
[1754912821768,1.16513538,120610.0,120600.0,0.33289808]
[1754912822066,0.868617,120610.0,120600.0,0.33289808]
[1754912822456,0.8782804,120610.0,120600.0,0.33489808]
[1754912822652,0.8782804,120610.0,120600.0,0.63141646]
[1754912822958,0.8726804,120610.0,120600.0,0.63141646]
[1754912823456,0.8738404,120610.0,120600.0,0.63141646]
[1754912823658,0.8748404,120610.0,120600.0,0.33489808]
[1754912824160,0.8764304,120610.0,120600.0,0.33489808]
[1754912824472,1.17479878,120610.0,120600.0,0.33489808]
[1754912827662,0.0992804,120610.0,120600.0,0.33489808]
[1754912827968,0.8782804,120610.0,120600.0,0.33489808]
[1754912828561,1.0157804,120610.0,120600.0,0.33489808]
[1754912828863,0.8782804,120610.0,120600.0,0.33489808]
[1754912830361,0.39579878,120610.0,120600.0,0.33489808]
[1754912830561,1.17479878,120610.0,120600.0,0.33489808]
[1754912831070,0.39579878,120610.0,120600.0,0.16923808]
[1754912831270,1.17475878,120610.0,120600.0,0.13102808]
[1754912831468,1.53555878,120610.0,120600.0,0.13102808]
[1754912831666,1.83207716,120610.0,120600.0,0.13102808]
[1754912831860,1.96957716,120610.0,120600.0,0.13102808]
[1754912832165,1.67315146,120610.0,120600.0,0.13102808]
[1754912833866,0.59423308,120610.0,120600.0,0.13102808]
[1754912834066,1.67315146,120610.0,120600.0,0.29241808]
[1754912834271,1.69162229,120610.0,120600.0,0.29241808]
[1754912834468,1.69162229,120610.0,120600.0,0.33489808]
[1754912835567,1.39510391,120610.0,120600.0,0.33489808]
[1754912835766,1.69162229,120610.0,120600.0,0.33489808]
[1754912835964,0.91266229,120610.0,120600.0,0.33489808]
[1754912836272,1.39506391,120610.0,120600.0,0.33489808]
[1754912836963,1.69158229,120610.0,120600.0,0.33489808]
[1754912837158,0.91266229,120610.0,120600.0,0.33489808]
[1754912837360,1.69158229,120610.0,120600.0,0.33489808]
[1754912837967,1.39506391,120610.0,120600.0,0.33489808]
[1754912838170,0.11784391,120610.0,120600.0,0.63141646]
[1754912838474,0.89391391,120610.0,120600.0,0.63141646]
[1754912839168,0.89516391,120610.0,120600.0,0.63141646]
[1754912839474,0.87669308,120610.0,120600.0,0.63141646]
[1754912840071,0.87669308,120610.0,120600.0,0.33489808]
[1754912840365,0.09377308,120610.0,120600.0,0.71433176]
[1754912840573,0.87269308,120610.0,120600.0,1.07513176]
[1754912840770,0.09377308,120610.0,120600.0,1.07513176]
[1754912841076,0.87265308,120610.0,120600.0,1.07513176]
[1754912842075,0.87265308,120610.0,120600.0,0.77861338]
[1754912842264,0.87265308,120610.0,120600.0,1.07513176]
[1754912842965,0.87261308,120610.0,120600.0,1.07513176]
[1754912843975,0.09377308,120610.0,120600.0,1.07513176]
[1754912844173,0.87257308,120610.0,120600.0,1.07513176]
[1754912844679,0.87257308,120610.0,120600.0,1.16180511]
[1754912844968,0.08410968,120610.0,120600.0,1.16180511]
[1754912845173,0.86286968,120610.0,120600.0,1.24472911]
[1754912845373,0.86286968,120610.0,120600.0,1.41056111]
[1754912845674,0.08410968,120610.0,120600.0,1.41056111]
[1754912845974,0.86286968,120610.0,120600.0,1.41056111]
[1754912846369,0.3316586,120620.0,120600.0,1.62630511]
[1754912846576,0.3316586,120620.0,120610.0,0.77750838]
[1754912846772,1.1103786,120620.0,120610.0,0.86040838]
[1754912846970,1.1103786,120620.0,120610.0,1.07459384]
[1754912847168,1.1103786,120620.0,120610.0,1.15750226]
[1754912847370,1.12036695,120620.0,120610.0,1.15750226]
[1754912847567,1.18713695,120620.0,120610.0,0.59134478]
[1754912847770,1.91849533,120620.0,120610.0,0.17852163]
[1754912847975,1.06573533,120620.0,120610.0,0.09561321]
[1754912848180,0.082917,120610.0,120600.0,0.3617088]
[1754912848381,0.49413538,120610.0,120600.0,0.3617088]
[1754912848579,0.197617,120610.0,120600.0,0.80488021]
[1754912848779,0.49413538,120610.0,120600.0,0.72197179]
[1754912848970,0.85493538,120610.0,120600.0,0.36226299]
[1754912849170,1.71225538,120610.0,120600.0,0.36226299]
[1754912849382,1.71225538,120610.0,120600.0,0.36236299]
[1754912849383,1.71235538,120610.0,120600.0,0.36236299]
[1754912849678,0.85603538,120610.0,120600.0,0.36736299]
[1754912849981,0.85603538,120610.0,120600.0,0.5611284]
[1754912850173,1.71347538,120610.0,120600.0,0.5611284]
[1754912850476,1.71347538,120610.0,120600.0,0.3232762]
[1754912851178,1.416957,120610.0,120600.0,0.3232762]
[1754912851374,1.71347538,120610.0,120600.0,0.3232762]
[1754912852370,1.71347538,120610.0,120600.0,0.12951079]
[1754912853479,1.71347538,120610.0,120600.0,0.26736079]
[1754912853677,1.71347538,120610.0,120600.0,0.33260079]
[1754912854384,1.75389538,120610.0,120600.0,0.37789079]
[1754912854583,1.457377,120610.0,120600.0,0.37789079]
[1754912854783,1.75389538,120610.0,120600.0,0.25770079]
[1754912855088,1.75389538,120610.0,120600.0,0.21455079]
[1754912856981,1.75229538,120610.0,120600.0,0.17480079]
[1754912857684,0.89645538,120610.0,120600.0,0.17480079]
[1754912857881,1.78378538,120610.0,120600.0,0.17480079]
[1754912858183,1.78378538,120610.0,120600.0,0.12951079]
[1754912858580,1.78346538,120610.0,120600.0,0.12951079]
[1754912859882,1.78346538,120610.0,120600.0,0.3232768]
[1754912861084,1.486947,120610.0,120600.0,0.3232768]
[1754912861285,1.78346538,120610.0,120600.0,0.3685668]
[1754912861786,0.92838538,120610.0,120600.0,0.3685668]
[1754912861988,1.78186538,120610.0,120600.0,0.3685668]
[1754912862288,1.78186538,120610.0,120600.0,0.17480079]
[1754912862786,1.485347,120610.0,120600.0,0.17480079]
[1754912862992,1.78186538,120610.0,120600.0,0.41058079]
[1754912863285,0.92838538,120610.0,120600.0,0.41058079]
[1754912863492,1.78186538,120610.0,120600.0,0.41058079]
[1754912863790,1.78186538,120610.0,120600.0,0.60434294]